Cogmind - Beta 16 @@@ ROGUE MODE // 2026.01.19 @ 16:54:37 Player: KingStarKing Result: Destroyed by S-27 Virus with Autogun Performance ------------- Evolutions (4) 2000 Regions Visited (15) 3000 Robots Destroyed (82) 410 Value Destroyed (2992) 2992 Prototype IDs (27) 540 Alien Tech Used (0) 0 Bonus (978) 978 TOTAL SCORE: 9920 Bonus ------- High Alert Combat Kills 11 Follower Combat Kills 1070 Aligned with FarCom 300 Friendly Fire -403 Cogmind --------- Core Integrity 0/850 Matter 196/300 Energy 93/150 System Corruption 18% Temperature Cool (0) Movement Walking (120) Location -6/Lower Caves Parts ------- > --- POWER (1) -------- Micro Nuclear Core > --- PROPULSION (4) --- Carbon-fiber Leg Carbon-fiber Leg > --- UTILITY (8) ------ Energy Filter Advanced ECM Suite Hacking Suite System Shield Component Analysis Suite > --- WEAPON (2) ------- Heavy Flail > --- INVENTORY (5) ---- F-cell Engine Cloaking Device Improved Grenade Launcher Peak State ------------ > --- POWER ------------ Antimatter Reactor > --- PROPULSION ------- Flying Fortress v7 > --- UTILITY ---------- Small Storage Unit Hacking Suite System Shield System Shield System Restoration Module Recalibrator > --- WEAPON ----------- Heavy Battle Rifle Improved Grenade Launcher > --- INVENTORY -------- Micro Nuclear Core Micro Nuclear Core Antimatter Reactor Improved Cooling System Microactuators Advanced Hacking Suite Greatsword [Rating: 67] Favorites ----------- Power Antimatter Reactor Engine Improved Ion Engine Power Core Micro Nuclear Core Reactor Antimatter Reactor Propulsion Carbon-fiber Leg Treads Light Treads Leg Carbon-fiber Leg Hover Unit Gravmag System Flight Unit Flying Fortress v7 Utility System Shield Device System Restoration Module Storage Small Storage Unit Processor Improved Melee Analysis Suite Hackware System Shield Protection Hardened Light Armor Plating Weapon Improved Grenade Launcher Energy Gun Beam Rifle Energy Cannon Phase Cannon Ballistic Gun Heavy Battle Rifle Ballistic Cannon Light Cannon Launcher Improved Grenade Launcher Impact Weapon Heavy Flail Slashing Weapon Great Axe Build | -11 -10 -9 -9 -9 -8 -8 -7 -7 -7 -7 -7 -7 -6 -6 -6 ------- Run | Yrd Mat Mat Min Exi Min Mat Fac Was Fac Low Low Zio Pro Fac Low Slots Evolved 8 | . . 2 . . . 2 2 . . . . . . 2 . Power . | . . . . . . . . . . . . . . . . Propulsion 2 | . . 2 . . . . . . . . . . . . . Utility 6 | . . . . . . 2 2 . . . . . . 2 . Weapon . | . . . . . . . . . . . . . . . . Parts Attached 88 | 7 4 9 3 1 2 9 10 2 1 . . . 1 39 . Power 14 | 2 . 1 . . . 2 1 1 . . . . . 7 . Engine 5 | 2 . 1 . . . . . . . . . . . 2 . Core 8 | . . . . . . 2 1 . . . . . . 5 . Reactor 1 | . . . . . . . . 1 . . . . . . . Propulsion 24 | 2 . 5 3 1 . . . . . . . . . 13 . Treads 3 | 2 . 1 . . . . . . . . . . . . . Leg 19 | . . 4 3 . . . . . . . . . . 12 . Wheel . | . . . . . . . . . . . . . . . . Hover 1 | . . . . . . . . . . . . . . 1 . Flight 1 | . . . . 1 . . . . . . . . . . . Utility 29 | 1 2 . . . 2 3 8 . 1 . . . . 12 . Device 17 | . 1 . . . . 3 4 . 1 . . . . 8 . Storage 2 | 1 1 . . . . . . . . . . . . . . Processor 1 | . . . . . . . 1 . . . . . . . . Hackware 5 | . . . . . . . 3 . . . . . . 2 . Protection 4 | . . . . . 2 . . . . . . . . 2 . Artifact . | . . . . . . . . . . . . . . . . Weapon 21 | 2 2 3 . . . 4 1 1 . . . . 1 7 . Energy Gun 8 | 1 . 2 . . . . . . . . . . . 5 . Energy Cannon 2 | . . . . . . 1 . . . . . . . 1 . Ballistic Gun 2 | 1 . . . . . . . 1 . . . . . . . Ballistic Cannon 2 | . 1 . . . . . . . . . . . 1 . . Launcher 2 | . . 1 . . . 1 . . . . . . . . . Special Weapon . | . . . . . . . . . . . . . . . . Impact Weapon 1 | . . . . . . . . . . . . . . 1 . Slashing Weapon 4 | . 1 . . . . 2 1 . . . . . . . . Piercing Weapon . | . . . . . . . . . . . . . . . . Special Melee Weapon . | . . . . . . . . . . . . . . . . Unidentified Prototypes . | . . . . . . . . . . . . . . . . Corrupted Parts 1 | . . . . . . . . . . . . . . 1 . System Corruption 6 | . . . . . . . . . . . . . . 6 . Parts Lost 35 | . . 3 . . . . 1 . . . . . 1 29 1 Power 4 | . . . . . . . . . . . . . . 4 . Propulsion 11 | . . 2 . . . . . . . . . . 1 8 . Utility 12 | . . . . . . . 1 . . . . . . 10 1 Weapon 8 | . . 1 . . . . . . . . . . . 7 . Highest Loss Streak 6 | . . 2 . . . . 1 . . . . . 1 6 1 To Critical Strikes . | . . . . . . . . . . . . . . . . Average Backups 6 | 2 6 7 7 8 7 7 7 7 7 7 7 7 7 5 3 Power 1 | . 1 . . 1 1 . . 2 2 2 1 1 1 1 1 Propulsion . | 1 2 . . . . . . . . . . . . 1 . Utility 2 | . . 4 5 6 5 2 2 2 3 4 4 4 4 1 1 Weapon 2 | . 2 2 1 1 1 4 3 1 1 1 1 2 2 1 1 Tool/Special . | . . . . . . . . . . . . . . . . Unused Backups 23 | . 1 1 1 . 1 4 4 3 1 . 2 . . 3 2 Power 5 | . . . . . . . 1 . 1 . 1 . . 1 1 Propulsion 2 | . 1 . . . . . . 1 . . . . . . . Utility 10 | . . 1 1 . 1 3 1 . . . 1 . . 1 1 Weapon 5 | . . . . . . . 2 2 . . . . . 1 . Tool/Special 1 | . . . . . . 1 . . . . . . . . . Average Slot Usage (%) 77 | . 89 93 98 91 66 70 74 72 76 76 76 76 70 77 65 Engine 4 | . 14 11 11 11 11 8 . . . . . . . 2 . Core 1 | . . . . . . . 6 3 . . . . . 2 6 Reactor 2 | . . . . . . . . 3 7 7 7 7 7 1 . Treads 2 | . 28 4 2 . . . . . . . . . . . . Leg 7 | . . 33 40 33 . . . . . . . . . 15 13 Flight 3 | . . . . 2 11 9 7 7 7 7 7 7 1 . . Device 13 | . 4 11 11 11 . 13 12 15 15 15 15 15 15 17 25 Storage 7 | . 14 11 11 11 11 9 6 7 7 7 7 7 7 3 . Hackware 14 | . . . . . . . 22 23 23 23 23 23 23 21 13 Protection 2 | . . . . . 10 11 . . . . . . . 2 . Energy Gun 2 | . 12 6 11 11 11 1 . . . . . . . 2 . Ballistic Gun 2 | . 3 4 . . . . . 3 7 7 7 7 7 1 . Ballistic Cannon 1 | . 10 4 . . . . . . . . . . . 1 . Launcher 4 | . . 4 11 11 11 7 6 4 7 7 7 7 6 . . Slashing Weapon 2 | . 2 2 . . . 7 7 2 . . . . . 2 . Peak Build Rating 67 | 6 7 11 12 40 41 53 63 65 67 67 67 67 67 55 37 Average Rating 43 | 4 6 10 11 18 40 50 60 62 66 67 66 67 41 42 36 On Entrance 39 | . 6 7 11 12 40 41 53 62 64 67 67 67 67 35 37 Avg Prop Armor Cover (%) 7 | . . 9 . . . . . . . . . . . 3 . Naked Turns . | . . . . . . . . . . . . . . . . Heaviest Build 39 | 13 16 19 19 19 25 35 24 34 34 33 33 33 34 39 17 Greatest Support 65 | 40 40 40 40 50 50 50 50 50 50 50 50 50 50 65 30 Greatest Overweight (x) 12 | . . . . . . . . . . . . . 11 12 . Average Overweight (x) . | . . . . . . . . . . . . . 3 . . Largest Inventory Capacity 8 | 8 8 8 8 8 8 8 8 8 8 8 8 8 8 8 5 Average Capacity 7 | 6 8 8 8 8 8 8 7 8 8 8 8 8 8 6 5 Most Carried 8 | 4 8 8 8 8 8 8 8 8 8 8 8 8 8 8 3 Average Carried 6 | 2 6 7 7 8 7 7 7 7 7 8 7 8 8 5 3 Final Capacity 8 | 8 8 8 8 8 8 8 8 8 8 8 8 8 8 5 5 Final Carried 8 | 4 8 8 8 8 8 8 8 8 8 8 8 8 8 3 3 Class Distribution -------------------- 66% | Hacker-Mutant 32% | Mutant Dominant Class ---------------- Mutant | -10/Materials Mutant | -9/Materials Mutant | -9/Mines Mutant | -9/Exiles Mutant | -8/Mines Mutant | -8/Materials Hacker-Mutant | -7/Factory Hacker-Mutant | -7/Waste Hacker-Mutant | -7/Factory Hacker-Mutant | -7/Lower Caves Hacker-Mutant | -7/Lower Caves Hacker-Mutant | -7/Zion Hacker-Mutant | -6/Proximity Caves Hacker-Mutant | -6/Factory Hacker-Mutant | -6/Lower Caves Resources | -11 -10 -9 -9 -9 -8 -8 -7 -7 -7 -7 -7 -7 -6 -6 -6 ----------- Run | Yrd Mat Mat Min Exi Min Mat Fac Was Fac Low Low Zio Pro Fac Low Matter Collected 2190 | 168 213 310 50 . 61 274 184 291 19 . 43 . 112 465 . Remotely . | . . . . . . . . . . . . . . . . Salvage Created 3016 | . 187 406 134 . 33 570 254 329 . . 111 . 49 943 . Parts 173 | . 11 23 7 . 2 46 25 7 . . 5 . 2 45 . Haulers Intercepted . | . . . . . . . . . . . . . . . . Recyclers Shooed 1 | . . 1 . . . . . . . . . . . . . Parts Field Recycled . | . . . . . . . . . . . . . . . . Retrieved Matter . | . . . . . . . . . . . . . . . . Parts Self-Destructed 39 | . . . . . . . . . . 3 14 . 17 . 5 Prevented . | . . . . . . . . . . . . . . . . Parts Restored . | . . . . . . . . . . . . . . . . Kills | -11 -10 -9 -9 -9 -8 -8 -7 -7 -7 -7 -7 -7 -6 -6 -6 ------- Run | Yrd Mat Mat Min Exi Min Mat Fac Was Fac Low Low Zio Pro Fac Low Combat Hostiles Destroyed 66 | . 9 11 3 . 1 15 6 1 . . 2 . 1 17 . Melee 22 | . . . . . . 10 6 . . . . . . 6 . Guns 15 | . 4 4 3 . . . . . . . 2 . . 2 . Cannons 13 | . 5 3 . . . 1 . . . . . . 1 3 . AOE 14 | . . 4 . . 1 4 . 1 . . . . . 4 . Classes Destroyed 14 | . 3 5 . . 1 3 1 1 . . . . . . . Worker 2 | . . . . . . 2 . . . . . . . . . Builder 5 | . . . . . . 2 1 . . . . . . 2 . Recycler 3 | . . 2 . . . . . . . . . . . 1 . Operator 3 | . 1 1 . . . . 1 . . . . . . . . Watcher 1 | . . 1 . . . . . . . . . . . . . Swarmer 13 | . 6 4 . . . . 3 . . . . . . . . Cutter 4 | . . . . . . 4 . . . . . . . . . Grunt 20 | . 3 3 3 . . 4 1 . . . . . 1 5 . Brawler 1 | . . 1 . . . . . . . . . . . . . Duelist 1 | . . 1 . . . . . . . . . . . . . Sentry 10 | . . 2 . . . 6 . . . . 1 . . 1 . Hunter 6 | . . . . . 1 1 . . . . . . . 4 . Programmer 10 | . . . . . . . 2 . . . 1 . . 7 . Compactor 1 | . . . . . . . . 1 . . . . . . . Wasp 2 | . . . . . . . . 2 . . . . . . . Best Kill Streak 9 | . 4 5 3 . 1 9 3 1 . . 1 . 1 3 . Combat Bots Only 6 | . 4 5 3 . 1 6 3 1 . . 1 . 1 3 . Max Kills in Single Turn 2 | . 1 2 1 . 1 2 1 2 . . 1 . 1 2 . Gunslinging . | . . . . . . . . . . . . . . . . Exploded 2 | . . 2 . . 1 1 . 1 . . . . . 1 . Melee 1 | . . . . . . 1 1 . . . . . . 1 . Uniques/NPCs Destroyed . | . . . . . . . . . . . . . . . . Combat | -11 -10 -9 -9 -9 -8 -8 -7 -7 -7 -7 -7 -7 -6 -6 -6 -------- Run | Yrd Mat Mat Min Exi Min Mat Fac Was Fac Low Low Zio Pro Fac Low Hostile Shots Fired 547 | . 60 40 10 . 2 52 47 . 18 . 20 . 33 238 27 Missed 196 | . 16 11 2 . 1 24 28 . 8 . 7 . 15 69 15 Hits 351 | . 44 29 8 . 1 28 19 . 10 . 13 . 18 169 12 Melee 13 | . . 4 . . . 9 . . . . . . . . . Projectile 338 | . 44 25 8 . 1 19 19 . 10 . 13 . 18 169 12 AOE 3 | . . . . . . 2 . . . . . . . 1 . Critical Strikes 13 | . 2 . . . . 6 1 . . . 1 . . 3 . Damage Taken 5985 | . 411 383 99 . 14 568 258 54 52 . 199 . 356 3384 207 Core 1137 | . 38 72 . . . 73 . . 21 . 44 . 31 799 59 Absorbed by Shields 58 | . . . . . . 58 . . . . . . . . . Regen/Repaired (Parts) 397 | . 71 . . . . . 149 15 . . 58 . 23 81 . Core Remaining (%) 87 | 100 84 . . . 82 86 . . . . . . 86 . . Volleys Fired 206 | . 35 45 8 . 1 16 . 15 3 . 11 . 18 54 . Largest 2 | . 2 2 1 . 1 2 . 1 1 . 1 . 2 2 . Hottest 160 | . 80 80 56 . 30 131 . 36 33 . 33 . 73 160 . Shots Fired 284 | . 70 55 8 . 1 19 . 15 3 . 11 . 24 78 . Gun 161 | . 35 30 8 . . 3 . . 3 . 11 . 18 53 . Cannon 81 | . 35 18 . . . 3 . . . . . . 5 20 . Launcher 42 | . . 7 . . 1 13 . 15 . . . . 1 5 . Special . | . . . . . . . . . . . . . . . . Kinetic 104 | . 35 28 . . . . . . 3 . 11 . 23 4 . Thermal 136 | . 35 20 8 . . 6 . . . . . . . 67 . Explosive 42 | . . 7 . . 1 13 . 15 . . . . 1 5 . Electromagnetic 2 | . . . . . . . . . . . . . . 2 . Robot Hit Streak 12 | . 9 10 4 . 4 6 . 12 2 . 3 . 10 7 . Robot Miss Streak 3 | . 3 3 1 . . 2 . . 1 . 1 . 1 3 . Penetration Max . | . . . . . . . . . . . . . . . . Secondary Targets . | . . . . . . . . . . . . . . . . Shots Hit Robots 235 | . 40 36 7 . 1 23 13 10 2 . 7 . 18 78 . Core Hits 122 | . 15 25 5 . 1 23 8 7 1 . 3 . 5 29 . Critical Kills 1 | . . . . . . . . . . . 1 . . . . Critical Parts Destroyed . | . . . . . . . . . . . . . . . . Critical Strikes 19 | . 6 3 . . . . . . . . 1 . . 9 . Burn 9 | . 4 3 . . . . . . . . . . . 2 . Destroy 1 | . . . . . . . . . . . 1 . . . . Blast 3 | . 2 . . . . . . . . . . . . 1 . Sever 6 | . . . . . . . . . . . . . . 6 . Melee Attacks 195 | . . . . . . 70 63 1 . . . . . 59 2 Impact 15 | . . . . . . . . . . . . . . 13 2 Slashing 180 | . . . . . . 70 63 1 . . . . . 46 . Piercing . | . . . . . . . . . . . . . . . . Sneak Attacks 3 | . . . . . . . 2 . . . . . . 1 . Combat Hostiles . | . . . . . . . . . . . . . . . . Follow-up Attacks 1 | . . . . . . 1 . . . . . . . . . Damage Inflicted 9420 | . 570 935 104 . 48 1431 681 1767 40 . 172 . 344 3328 . Guns 1806 | . 328 214 104 . . 14 . . 40 . 172 . 175 759 . Cannons 986 | . 242 242 . . . 25 . . . . . . 112 365 . Explosions 3795 | . . 479 . . 48 690 . 1767 . . . . 57 754 . Melee 2833 | . . . . . . 702 681 . . . . . . 1450 . Ramming . | . . . . . . . . . . . . . . . . Kinetic 1050 | . 242 276 . . . . . . 40 . 172 . 287 33 . Thermal 2137 | . 328 180 104 . . 39 . . . . . . . 1486 . Explosive 3383 | . . 479 . . 48 690 . 1767 . . . . 57 342 . Electromagnetic 17 | . . . . . . . . . . . . . . 17 . Impact 351 | . . . . . . . . . . . . . . 351 . Slashing 2482 | . . . . . . 702 681 . . . . . . 1099 . Piercing . | . . . . . . . . . . . . . . . . Highest Corruption 18 | . 1 . . . . 1 1 . . . . . . 18 18 Average Corruption 3 | . 1 . . . . 1 1 . . . . . . 5 18 Corruption Purged 1 | . . . . . . . 1 . . . . . . . . Corruption Blocked . | . . . . . . . . . . . . . . . . Effects 60 | . 4 . . . . 9 1 . . . . . . 36 10 Message Errors 16 | . 2 . . . . 3 . . . . . . . 9 2 Matter Fused 20 | . 1 . . . . 2 . . . . . . . 15 2 Heat Flow Errors 8 | . . . . . . 2 . . . . . . . 4 2 Energy Discharges 5 | . 1 . . . . 1 . . . . . . . 1 2 Parts Rejected 1 | . . . . . . . . . . . . . . 1 . Data Loss (minor) 7 | . . . . . . 1 1 . . . . . . 4 1 Data Loss (major) 1 | . . . . . . . . . . . . . . 1 . Alerts 1 | . . . . . . . . . . . . . . . 1 Weapon Failures 1 | . . . . . . . . . . . . . . 1 . Overload Shots . | . . . . . . . . . . . . . . . . Overflow Damage 251 | . . 8 . . . 11 16 . . . . . 6 210 . Projectiles 6 | . . . . . . . . . . . . . 6 . . Explosions 31 | . . 8 . . . . . . . . . . . 23 . Melee 214 | . . . . . . 11 16 . . . . . . 187 . Knockbacks 16 | . 5 8 . . . . . . . . . . 2 1 . Impact 1 | . . . . . . . . . . . . . . 1 . Kinetic 15 | . 5 8 . . . . . . . . . . 2 . . Secondary . | . . . . . . . . . . . . . . . . Self-Inflicted Damage 295 | . . . . . . 54 . 54 . . . . . 187 . Shots 5 | . . . . . . 1 . 1 . . . . . 3 . Rammed 1 | . 1 . . . . . . . . . . . . . . Targets Rammed 2 | . 1 . . . . . . . . . . . . 1 . Kicked 1 | . . . . . . . . . . . . . . 1 . Crushed . | . . . . . . . . . . . . . . . . Highest Temperature 356 | . 289 57 150 . 11 194 9 18 14 . 14 . 15 356 151 Average Temperature 81 | . 99 21 81 . 6 84 9 12 11 . 11 . 9 115 73 Received Heat Transfer 896 | . 117 57 54 . . 131 60 . . . 9 . 51 408 9 Effects 1 | . . . . . . . . . . . . . . 1 . Short Circuit 1 | . . . . . . . . . . . . . . 1 . Siege Activations . | . . . . . . . . . . . . . . . . Martial Activations . | . . . . . . . . . . . . . . . . Shielding Activations . | . . . . . . . . . . . . . . . . Robots Disrupted . | . . . . . . . . . . . . . . . . Combat Hostiles . | . . . . . . . . . . . . . . . . Robots Corrupted 1 | . . . . . . . . . . . . . . 1 . Combat Hostiles 1 | . . . . . . . . . . . . . . 1 . Parts Fried . | . . . . . . . . . . . . . . . . Impact Corruptions 6 | . . . . . . . . . . . . . . 6 . Robots Melted 1 | . . . . . . . . . . . . . . 1 . Combat Hostiles 1 | . . . . . . . . . . . . . . 1 . Parts Melted 11 | . 2 . . . . . . . . . 1 . . 8 . Heat Transferred 4500 | . 1258 740 259 . . 74 . . . . . . . 2169 . Parts Sabotaged . | . . . . . . . . . . . . . . . . Parts Stolen . | . . . . . . . . . . . . . . . . Parts Stripped . | . . . . . . . . . . . . . . . . Power Chain Reactions . | . . . . . . . . . . . . . . . . Alert | -11 -10 -9 -9 -9 -8 -8 -7 -7 -7 -7 -7 -7 -6 -6 -6 ------- Run | Yrd Mat Mat Min Exi Min Mat Fac Was Fac Low Low Zio Pro Fac Low Maximum Alert Level 2 | . . . . . . 2 1 . . . . . . 1 . Low Security (%) 91 | 100 100 100 100 . 100 65 93 100 100 . . . . 93 . Level 1 6 | . . . . . . 23 6 . . . . . . 6 . Level 2 1 | . . . . . . 10 . . . . . . . . . Level 3 . | . . . . . . . . . . . . . . . . Level 4 . | . . . . . . . . . . . . . . . . Level 5 . | . . . . . . . . . . . . . . . . High Security . | . . . . . . . . . . . . . . . . Max Security . | . . . . . . . . . . . . . . . . Peak Influence 472 | . 139 152 101 . 38 472 221 28 182 . . . . 229 . Initial 211 | . . 31 31 . . . 211 24 . . . . . 31 . Average 69 | . 50 83 64 . 3 147 60 10 19 . . . . 69 . Influence Increases 3666 | . 243 346 70 . 38 768 272 58 202 40 446 . 388 780 15 Destroy 0b10 Robot/C 1840 | . 180 220 60 . 20 300 120 . 80 20 240 . 260 340 . Destroy 0b10 Robot/NC 80 | . 5 20 . . . 20 10 . 10 . . . . 15 . Destroy Leader 414 | . 40 52 10 . 10 100 20 . 22 . 30 . 40 90 . Allied During Kill 337 | . . . . . . . . . 83 20 176 . 58 . . Trap Triggered on 0b10 10 | . . . . . . . 10 . . . . . . . . Successful Hack 20 | . 2 . . . . . 12 . . . . . . 6 . Disable Machine 120 | . 15 . . . . 60 . . . . . . . 45 . Anti-Garrison Action 150 | . . . . . . . . . . . . . . 150 . Destroy Structure 305 | . 1 39 . . 8 78 40 58 7 . . . . 74 . Partial Spotted 60 | . . . . . . 45 15 . . . . . . . . Lose Combat Pursuer 330 | . . 15 . . . 165 45 . . . . . 30 60 15 Influence Decreases 3666 | . 168 339 121 31 38 302 667 129 20 222 242 204 338 720 125 Entered New Map 760 | . . 44 51 31 . . 255 47 . 68 . 204 . 19 41 Time Decay 2475 | . 168 265 70 . 38 302 402 64 20 134 162 . 306 460 84 Lost Part 291 | . . 30 . . . . 10 . . . . . 10 241 . Lost Ally 140 | . . . . . . . . 18 . 20 80 . 22 . . Squads Dispatched 23 | . 1 1 . . . 6 4 . 1 . . . . 10 . Investigation 6 | . . . . . . . 1 . 1 . . . . 4 . Extermination 6 | . . . . . . . 2 . . . . . . 4 . Reinforcement 6 | . 1 1 . . . 3 1 . . . . . . . . Assault 2 | . . . . . . . . . . . . . . 2 . Garrison 3 | . . . . . . 3 . . . . . . . . . Intercept . | . . . . . . . . . . . . . . . . Searches Triggered . | . . . . . . . . . . . . . . . . Construction Impeded 1 | . . . . . . 1 . . . . . . . . . Haulers Reinforced . | . . . . . . . . . . . . . . . . Active Scanning Responses . | . . . . . . . . . . . . . . . . Cargo Convoy Interrupts . | . . . . . . . . . . . . . . . . Stealth | -11 -10 -9 -9 -9 -8 -8 -7 -7 -7 -7 -7 -7 -6 -6 -6 --------- Run | Yrd Mat Mat Min Exi Min Mat Fac Was Fac Low Low Zio Pro Fac Low Distress Signals 10 | . 1 2 . . . 2 2 . 2 . . . . 1 . Communications Jammed . | . . . . . . . . . . . . . . . . Distress Signals . | . . . . . . . . . . . . . . . . Times Spotted 160 | . 20 22 3 . 1 31 15 6 2 . 9 . 14 30 7 Peak Tracking Total 12 | . 5 5 3 . 1 12 3 4 2 . 6 . 4 4 9 Tactical Retreats 14 | . . 1 . . . 5 2 . . . . . 1 4 1 ECM-based Alert Blocks 1 | . . . . . . . . . . . . . . 1 . Traps | -11 -10 -9 -9 -9 -8 -8 -7 -7 -7 -7 -7 -7 -6 -6 -6 ------- Run | Yrd Mat Mat Min Exi Min Mat Fac Was Fac Low Low Zio Pro Fac Low Traps Triggered 8 | . 1 . . . . 2 3 . . . . . . 2 . Indirectly . | . . . . . . . . . . . . . . . . Trap Hack Attempts . | . . . . . . . . . . . . . . . . Triggered . | . . . . . . . . . . . . . . . . Disarmed . | . . . . . . . . . . . . . . . . Reprogrammed 4 | . . . . . . . 4 . . . . . . . . Reused 1 | . . . . . . . 1 . . . . . . . . Traps Extracted . | . . . . . . . . . . . . . . . . Installed . | . . . . . . . . . . . . . . . . Triggered 1 | . . . . . . . 1 . . . . . . . . Machines | -11 -10 -9 -9 -9 -8 -8 -7 -7 -7 -7 -7 -7 -6 -6 -6 ---------- Run | Yrd Mat Mat Min Exi Min Mat Fac Was Fac Low Low Zio Pro Fac Low Machines Disabled 12 | . 1 . . . . 4 . . . . 3 . . 4 . Max in Single Turn 2 | . 1 . . . . 2 . . . . 1 . . 2 . Garrison Access 1 | . . . . . . . . . . . . . . 1 . Machines Repaired . | . . . . . . . . . . . . . . . . Machines Dismantled . | . . . . . . . . . . . . . . . . Machines Sabotaged . | . . . . . . . . . . . . . . . . Overloaded Fab Kills . | . . . . . . . . . . . . . . . . Hacking | -11 -10 -9 -9 -9 -8 -8 -7 -7 -7 -7 -7 -7 -6 -6 -6 --------- Run | Yrd Mat Mat Min Exi Min Mat Fac Was Fac Low Low Zio Pro Fac Low Machines Accessed 22 | . 2 . . 1 . 1 9 . 1 . . . . 8 . Terminals 6 | . 1 . . . . . 4 . 1 . . . . . . Fabricators 3 | . . . . . . . . . . . . . . 3 . Repair Stations 4 | . 1 . . . . . 2 . . . . . . 1 . Recycling Units 4 | . . . . . . . 1 . . . . . . 3 . Scanalyzers 1 | . . . . . . . 1 . . . . . . . . Garrison Access 3 | . . . . . . 1 1 . . . . . . 1 . Total Hacks 81 | . 4 . . 1 . 2 50 . 3 . . . . 21 . Successful 61 | . 2 . . 1 . . 41 . . . . . . 17 . Failed 19 | . 2 . . . . 2 8 . 3 . . . . 4 . Catastrophic 2 | . . . . . . 1 . . . . . . . 1 . Database Lockouts 1 | . . . . . . . 1 . . . . . . . . Manual 4 | . . . . 1 . . 3 . . . . . . . . Terminals 21 | . 1 . . . . . 17 . 3 . . . . . . Fabricators 9 | . . . . . . . . . . . . . . 9 . Repair Stations 27 | . 3 . . . . . 18 . . . . . . 6 . Recycling Units 5 | . . . . . . . 1 . . . . . . 4 . Scanalyzers 12 | . . . . . . . 12 . . . . . . . . Garrison Access 6 | . . . . . . 2 2 . . . . . . 2 . Terminal Hacks 17 | . . . . 1 . . 16 . . . . . . . . Record 8 | . . . . . . . 8 . . . . . . . . Robot Analysis 1 | . . . . . . . 1 . . . . . . . . Prototype ID Bank 1 | . . . . . . . 1 . . . . . . . . Open DSF 2 | . . . . . . . 2 . . . . . . . . Terminal Index 1 | . . . . . . . 1 . . . . . . . . Locate Traps 2 | . . . . . . . 2 . . . . . . . . Reprogram Traps 1 | . . . . . . . 1 . . . . . . . . Proto ID Catalog 1 | . . . . 1 . . . . . . . . . . . Fabricator Hacks 7 | . . . . . . . . . . . . . . 7 . Network Status 1 | . . . . . . . . . . . . . . 1 . Load Schematic 3 | . . . . . . . . . . . . . . 3 . Build 3 | . . . . . . . . . . . . . . 3 . Repair Station Hacks 22 | . 2 . . . . . 14 . . . . . . 6 . Scan Component 11 | . 1 . . . . . 7 . . . . . . 3 . Repair 11 | . 1 . . . . . 7 . . . . . . 3 . Recycling Unit Hacks 5 | . . . . . . . 1 . . . . . . 4 . Report Inventory 4 | . . . . . . . 1 . . . . . . 3 . Retrieve Components 1 | . . . . . . . . . . . . . . 1 . Scanalyzer 10 | . . . . . . . 10 . . . . . . . . Insert Component 4 | . . . . . . . 4 . . . . . . . . Analyze 5 | . . . . . . . 5 . . . . . . . . Retrieve Study 1 | . . . . . . . 1 . . . . . . . . Garrison Access Hacks . | . . . . . . . . . . . . . . . . Unauthorized Hacks . | . . . . . . . . . . . . . . . . Terminals . | . . . . . . . . . . . . . . . . Fabricators . | . . . . . . . . . . . . . . . . Repair Stations . | . . . . . . . . . . . . . . . . Recycling Units . | . . . . . . . . . . . . . . . . Scanalyzers . | . . . . . . . . . . . . . . . . Garrison Access . | . . . . . . . . . . . . . . . . Data Cores Recovered . | . . . . . . . . . . . . . . . . Used . | . . . . . . . . . . . . . . . . Hacking Detections 11 | . 1 . . . . 1 2 . 1 . . . . 6 . Full Trace Events 7 | . . . . . . 1 1 . 1 . . . . 4 . Feedback Events 1 | . . . . . . 1 . . . . . . . . . Corruption 1 | . . . . . . 1 . . . . . . . . . Feedback Blocked 1 | . . . . . . . . . 1 . . . . . . Robot Schematics Acquired . | . . . . . . . . . . . . . . . . Robots Built . | . . . . . . . . . . . . . . . . Authchips . | . . . . . . . . . . . . . . . . Time . | . . . . . . . . . . . . . . . . Total Robot Build Rating . | . . . . . . . . . . . . . . . . Part Schematics Acquired 4 | . . . . . . . 4 . . . . . . . . Parts Built 4 | . . . . . . . . . . . . . . 4 . Authchips . | . . . . . . . . . . . . . . . . Time 182 | . . . . . . . . . . . . . . 182 . Total Part Build Rating 12 | . . . . . . . . . . . . . . 12 . Part Studies Acquired 1 | . . . . . . . 1 . . . . . . . . Parts Repaired 10 | . 1 . . . . . 7 . . . . . . 2 . Time 364 | . 26 . . . . . 248 . . . . . . 90 . Parts Recycled . | . . . . . . . . . . . . . . . . Recycled Matter . | . . . . . . . . . . . . . . . . Retrieved Matter . | . . . . . . . . . . . . . . . . Retrieved Components . | . . . . . . . . . . . . . . . . Parts Scanalyzed 4 | . . . . . . . 4 . . . . . . . . Part Schematics Acquired 4 | . . . . . . . 4 . . . . . . . . Parts Damaged 1 | . . . . . . . 1 . . . . . . . . Bothacking | -11 -10 -9 -9 -9 -8 -8 -7 -7 -7 -7 -7 -7 -6 -6 -6 ------------ Run | Yrd Mat Mat Min Exi Min Mat Fac Was Fac Low Low Zio Pro Fac Low Used RIF Installer . | . . . . . . . . . . . . . . . . Robots Hacked . | . . . . . . . . . . . . . . . . Non-combat . | . . . . . . . . . . . . . . . . Combat . | . . . . . . . . . . . . . . . . Robot Hacks Applied . | . . . . . . . . . . . . . . . . Relay Couplers Released . | . . . . . . . . . . . . . . . . Fabnet Peak Effective % . | . . . . . . . . . . . . . . . . Robots Rewired . | . . . . . . . . . . . . . . . . Allies Hacked . | . . . . . . . . . . . . . . . . Hacks Repelled . | . . . . . . . . . . . . . . . . Allies | -11 -10 -9 -9 -9 -8 -8 -7 -7 -7 -7 -7 -7 -6 -6 -6 -------- Run | Yrd Mat Mat Min Exi Min Mat Fac Was Fac Low Low Zio Pro Fac Low Total Allies 19 | . . . . . . . . 19 . . . . . . . Largest Group 19 | . . . . . . . . 19 15 14 13 6 6 1 . Highest-Rated Group 475 | . . . . . . . . 475 402 375 344 182 182 31 . Highest-Rated Ally 35 | . . . . . . . . 35 35 35 35 31 31 31 . Total Orders . | . . . . . . . . . . . . . . . . Ally Attacks 318 | . . . . . . . . 121 28 4 65 . 99 1 . Total Damage 6067 | . . . . . . . . 2247 656 58 1579 . 1527 . . Kills 37 | . . . . . . . . 5 6 1 12 . 13 . . Allies Corrupted . | . . . . . . . . . . . . . . . . Allies Melted . | . . . . . . . . . . . . . . . . Intel | -11 -10 -9 -9 -9 -8 -8 -7 -7 -7 -7 -7 -7 -6 -6 -6 ------- Run | Yrd Mat Mat Min Exi Min Mat Fac Was Fac Low Low Zio Pro Fac Low Active Infowar (turns) 3123 | . 231 644 148 202 9 . 214 237 7 . . . . 1216 215 Sensors 1234 | . 231 644 148 202 9 . . . . . . . . . . Cloaking 399 | . . . . . . . . . . . . . . 184 215 ECM 1490 | . . . . . . . 214 237 7 . . . . 1032 . Robot Analysis Total 1 | . . . . . . . 1 . . . . . . . . Derelict Logs Recovered 5 | . . . 1 . . . . . . 1 3 . . . . Drone Launches . | . . . . . . . . . . . . . . . . Drone Recoveries . | . . . . . . . . . . . . . . . . Exploration | -11 -10 -9 -9 -9 -8 -8 -7 -7 -7 -7 -7 -7 -6 -6 -6 ------------- Run | Yrd Mat Mat Min Exi Min Mat Fac Was Fac Low Low Zio Pro Fac Low Turns Passed 9222 | 77 687 644 148 202 358 952 1355 237 317 446 475 89 895 2106 234 Spaces Moved 6729 | 43 323 403 103 221 436 759 1194 303 198 521 655 108 357 913 192 Core 226 | 4 . . . . . . . . . . . . 124 98 . Treads 364 | 39 323 2 . . . . . . . . . . . . . Legs 1636 | . . 401 103 125 . . . . . . . . . 815 192 Wheels . | . . . . . . . . . . . . . . . . Hover . | . . . . . . . . . . . . . . . . Flight 4503 | . . . . 96 436 759 1194 303 198 521 655 108 233 . . Fastest Speed 50 | 50 160 120 120 50 50 50 50 50 50 50 50 50 50 120 120 Average Speed 87 | 149 160 120 120 89 50 50 50 50 50 50 50 50 225 154 120 Slowest Speed 650 | 160 160 160 120 120 50 50 50 50 50 50 50 50 600 650 120 Overloaded Moves . | . . . . . . . . . . . . . . . . Propulsion Burnouts . | . . . . . . . . . . . . . . . . Robots Hopped 7 | . . . . . 4 1 . . 1 1 . . . . . Potential Cave-ins . | . . . . . . . . . . . . . . . . Cave-ins Triggered . | . . . . . . . . . . . . . . . . Exploration Rate (%) 43 | 4 54 38 24 61 69 49 29 96 5 70 79 10 53 26 31 Regions Visited 15 Branch Regions 8 Pre-discovered Areas 2 | . . . . . . . . . . . 2 . . . . Known Exits Taken 2 | . . . . . . 1 . . . . . . 1 . . Unknown Exits Taken 11 | 1 1 1 1 1 1 . . . 1 1 1 1 . 1 . Scrap Searched 9 | . . . . . 1 . . . . 2 5 . 1 . . Spaces Dug 102 | . . . . . . 42 41 1 . . . . . 18 . Terrain Destroyed 327 | . . 38 . . 8 90 41 58 . . . . 9 83 . Melee 102 | . . . . . . 42 41 1 . . . . . 18 . Projectile 7 | . . . . . . 2 . . . . . . . 5 . AOE 218 | . . 38 . . 8 46 . 57 . . . . 9 60 . Terrain Rammed . | . . . . . . . . . . . . . . . . Walls Destroyed . | . . . . . . . . . . . . . . . . Machines Disabled . | . . . . . . . . . . . . . . . . Actions | -11 -10 -9 -9 -9 -8 -8 -7 -7 -7 -7 -7 -7 -6 -6 -6 --------- Run | Yrd Mat Mat Min Exi Min Mat Fac Was Fac Low Low Zio Pro Fac Low Total 9403 | 52 424 508 121 225 570 1190 1850 374 412 704 793 142 428 1416 194 Wait 2020 | . 52 35 . . 132 318 544 32 207 184 120 35 51 310 . Move 6700 | 42 322 402 102 220 427 756 1193 302 195 518 654 107 356 912 192 Hop 7 | . . . . . 4 1 . . 1 1 . . . . . Pick Up 71 | 3 5 8 2 . 2 10 15 7 2 . 3 . . 14 . Fast Attach 49 | 6 3 1 2 1 . 1 7 2 1 . 1 . 1 23 . Attach 30 | . . 3 . . 1 3 4 5 . . . . . 14 . Detach 6 | . . . . . . . 2 1 . . . . . 3 . Swap 42 | 1 3 8 2 . 1 9 5 . . . . . 1 12 . Drop 71 | . 3 6 5 4 2 8 12 9 3 . 4 . 1 14 . Fire 206 | . 35 45 8 . 1 16 . 15 3 . 11 . 18 54 . Melee 193 | . . . . . . 68 63 1 . . . . . 59 2 Ram . | . . . . . . . . . . . . . . . . Kick 1 | . . . . . . . . . . . . . . 1 . Crush 1 | . 1 . . . . . . . . . . . . . . Escape Stasis 5 | . . . . . . . 5 . . . . . . . . Rewire . | . . . . . . . . . . . . . . . . Trap . | . . . . . . . . . . . . . . . . Miscellaneous 1 | . . . . . . . . . . 1 . . . . . Route ------- -11/Scrapyard -10/Materials -9/Materials -9/Mines -9/Exiles -8/Mines -8/Materials (discovered 2 exits: *Fac x2) -7/Factory -7/Waste -7/Factory -7/Lower Caves -7/Lower Caves -7/Zion -6/Proximity Caves -6/Factory (discovered 2 exits: [*Fac] / [*Low]) -6/Lower Caves History --------- Turn | Location | Event 8 | -11/Scrapyard | Discovered new exit (range 15) 78 | -11/Scrapyard | Entered Materials 302 | -10/Materials | Build established: Mutant 304 | -10/Materials | Repaired Lgt. Cannon 711 | -10/Materials | Discovered new exit (range 15) 765 | -10/Materials | Entered another Materials area 765 | -9/Materials | Evolved 2 slots: Propulsion x2 1340 | -9/Materials | Discovered new exit (range 15) 1409 | -9/Materials | Entered Mines 1471 | -9/Mines | Learned location of 1 exit from Materials 1551 | -9/Mines | Deemed a non-threat by the Exiles lab entrance 1553 | -9/Mines | Discovered new exit (range 5) 1557 | -9/Mines | Entered Exiles 1592 | -9/Exiles | Met 8R-AWN 1609 | -9/Exiles | Met EX-HEX 1651 | -9/Exiles | Met EX-BIN 1665 | -9/Exiles | Aligned with FarCom system 1667 | -9/Exiles | Given EX-Vault access code 1695 | -9/Exiles | Opened EX-Vault 1710 | -9/Exiles | Found Flying Fortress v7 1721 | -9/Exiles | Warned to stay clear of 0b10 Research branches 1735 | -9/Exiles | Met EX-DEC 1753 | -9/Exiles | Discovered new exit (range 14) 1759 | -9/Exiles | Left Exiles lab with Flying Fortress v7 1759 | -9/Exiles | Entered Mines 2085 | -8/Mines | Discovered new exit (range 5) 2117 | -8/Mines | Entered Materials 2117 | -8/Materials | Evolved 2 slots: Utility x2 2118 | -8/Materials | Identified exit to Factory 2943 | -8/Materials | Discovered exit to Factory (range 11) 3069 | -8/Materials | Entered Factory 3069 | -7/Factory | Evolved 2 slots: Utility x2 3091 | -7/Factory | Identified exit to DSF 3334 | -7/Factory | Repaired Imp. Grenade Launcher? 3361 | -7/Factory | Build established: Hacker-Mutant 3375 | -7/Factory | Repaired Shield Generator 3416 | -7/Factory | Repaired Imp. Heat Sink 3437 | -7/Factory | Central database locked down 3501 | -7/Factory | Repaired Carbon-fiber Leg 3540 | -7/Factory | Repaired Lgt. Nuclear Core 3568 | -7/Factory | Repaired Sml. Storage Unit 3814 | -7/Factory | Repaired Imp. Grenade Launcher 4424 | -7/Factory | Sucked down chute 4424 | -7/Factory | Entered Waste 4425 | -7/Waste | Met a frightened Derelict 4440 | -7/Waste | Spotted C-40 Crusher 4453 | -7/Waste | Allies destroyed C-40 Crusher 4466 | -7/Waste | Warlord forces began an assault 4499 | -7/Waste | Spotted C-40 Crusher 4503 | -7/Waste | Spotted C-40 Crusher 4503 | -7/Waste | Spotted C-40 Crusher 4506 | -7/Waste | Allies destroyed C-40 Crusher 4506 | -7/Waste | Spotted C-40 Crusher 4509 | -7/Waste | Destroyed C-40 Crusher 4512 | -7/Waste | Allies destroyed C-40 Crusher 4516 | -7/Waste | Allies destroyed C-40 Crusher 4534 | -7/Waste | Spotted C-40 Crusher 4543 | -7/Waste | Lost 3 allies 4548 | -7/Waste | Allies destroyed C-40 Crusher 4627 | -7/Waste | Discovered new exit (range 13) 4661 | -7/Waste | Entered Factory 4661 | -7/Factory | Accompanied by 15 allies 4927 | -7/Factory | Discovered new exit (range 6) 4978 | -7/Factory | Entered Lower Caves 4978 | -7/Lower Caves | Accompanied by 14 allies 4982 | -7/Lower Caves | Activated DRS Beacon 5065 | -7/Lower Caves | Encountered a Warlord checkpoint 5363 | -7/Lower Caves | Discovered new exit (range 10) 5424 | -7/Lower Caves | Entered another Lower Caves area 5424 | -7/Lower Caves | Accompanied by 13 allies 5535 | -7/Lower Caves | Learned location of Zion (-7) 5580 | -7/Lower Caves | Lost 3 allies 5610 | -7/Lower Caves | P-60 Hacker assimilated allied FP-6AT(d) 5651 | -7/Lower Caves | Learned location of 1 exit from Proximity Caves 5745 | -7/Lower Caves | Encountered a Warlord checkpoint 5824 | -7/Lower Caves | Discovered new exit (range 9) 5899 | -7/Lower Caves | Entered Zion 5899 | -7/Zion | Accompanied by 6 allies 5949 | -7/Zion | Discovered new exit (range 11) 5988 | -7/Zion | Entered Proximity Caves 5988 | -6/Proximity Caves | Accompanied by 6 allies 5989 | -6/Proximity Caves | Identified exit to Factory 6148 | -6/Proximity Caves | Attracted the attention of an 0b10 checkpoint 6152 | -6/Proximity Caves | Spotted B-75 Beast 6194 | -6/Proximity Caves | Allies destroyed B-75 Beast 6883 | -6/Proximity Caves | Entered Factory 6883 | -6/Factory | Accompanied by 1 ally 6883 | -6/Factory | Evolved 2 slots: Utility x2 7204 | -6/Factory | Fabricated Carbon-fiber Leg (x2) 7288 | -6/Factory | Lost 5 parts (1p2u2w) 7385 | -6/Factory | Fabricated Carbon-fiber Leg? 8199 | -6/Factory | Repaired Imp. Grenade Launcher 8226 | -6/Factory | Repaired ECM Suite 8289 | -6/Factory | Core integrity fell below 50% 8309 | -6/Factory | Lost 6 parts (1p2n2u1w) 8506 | -6/Factory | Lost 6 parts (2n3u1w) 8622 | -6/Factory | Core integrity fell below 20% 8652 | -6/Factory | Lost 5 parts (2n1u2w) 8774 | -6/Factory | Discovered new exit (range 16) 8800 | -6/Factory | System corruption reached 10% 8899 | -6/Factory | Discovered new exit (range 4) 8989 | -6/Factory | Entered Lower Caves 9070 | -6/Lower Caves | Spotted B-75 Beast 9204 | -6/Lower Caves | Attracted the attention of an 0b10 outpost 9223 | -6/Lower Caves | Destroyed by S-27 Virus with Autogun Last Messages --------------- 08955_ Component Analysis Suite identified F-cell Engine. 08961_ ANIO|W6:K>C=/JCVB